Cogmind - Beta 15 @@@ ROGUE MODE // 2025.08.16 @ 15:19:45 Player: FrigidRock Result: Destroyed by C-57 Dissector with Dual-blade Saw Performance ------------- Evolutions (8) 4000 Regions Visited (12) 2400 Robots Destroyed (111) 555 Value Destroyed (3576) 3576 Prototype IDs (30) 600 Alien Tech Used (0) 0 Bonus (121) 121 TOTAL SCORE: 11252 Bonus ------- High Alert Combat Kills 167 Follower Combat Kills 50 Friendly Fire -96 Cogmind --------- Core Integrity 0/1450 Matter 147/300 Energy 284/290 System Corruption 7% Temperature Cool (12) Movement Hovering (65) Location -2/Research Parts ------- > --- POWER (3) -------- Reinforced Deuterium Engine > --- PROPULSION (7) --- Combat Gravmag System Combat Gravmag System Combat Gravmag System Combat Gravmag System Combat Gravmag System Combat Gravmag System > --- UTILITY (11) ----- Advanced Cryofiber Web Medium Storage Unit Enhanced Optical Array Advanced System Shield > --- WEAPON (2) ------- (None) > --- INVENTORY (10) --- Particle Reactor Large Storage Unit Advanced Hardlight Generator Phase Gun Quantum Rifle Heavy Ion Cannon Railgun Plasma Sword Peak State ------------ > --- POWER ------------ Reinforced Deuterium Engine Neutrino Core Particle Reactor > --- PROPULSION ------- Combat Gravmag System Combat Gravmag System Combat Gravmag System Combat Gravmag System Combat Gravmag System Combat Gravmag System Combat Gravmag System > --- UTILITY ---------- Advanced Cryofiber Web Improved Cooling System Medium Storage Unit Enhanced Optical Array Improved Targeting Computer Advanced Particle Charger Advanced Reaction Control System Improved Phase Shifter Force Field Hacking Suite Advanced System Shield > --- WEAPON ----------- Quantum Rifle Heavy Ion Cannon > --- INVENTORY -------- Large Storage Unit Advanced Hardlight Generator Phase Gun Railgun Missile Launcher Plasma Sword [Rating: 129] Favorites ----------- Power Improved Ion Engine Engine Improved Ion Engine Power Core Neutrino Core Reactor Particle Reactor Propulsion Aluminum Leg Treads Light Treads Leg Aluminum Leg Wheel Compact Wheel Hover Unit Combat Gravmag System Flight Unit Improved Flight Unit Utility Medium Storage Unit Device Hardlight Generator Storage Medium Storage Unit Processor Improved Targeting Computer Hackware System Shield Protection Medium Armor Plating Weapon Heavy Ion Cannon Energy Gun Spread Laser Energy Cannon Heavy Ion Cannon Ballistic Gun Improved Assault Rifle Ballistic Cannon Heavy Flak Cannon Launcher Mini Grenade Launcher Slashing Weapon Plasma Sword Special Melee Weapon Datajack Build | -11 -10 -9 -9 -9 -8 -8 -7 -6 -5 -4 -3 -2 ------- Run | Yrd Mat Mat Min Exi Min Mat Fac Fac Fac Fac Res Res Slots Evolved 16 | . . 2 . . . 2 2 2 2 2 2 2 Power 2 | . . . . . . . 1 . . . 1 . Propulsion 5 | . . 1 . . . 1 . . 1 1 . 1 Utility 9 | . . 1 . . . 1 1 2 1 1 1 1 Weapon . | . . . . . . . . . . . . . Parts Attached 99 | 6 4 25 1 . 5 6 5 7 19 12 6 3 Power 15 | 1 1 2 . . 1 1 1 . 4 2 2 . Engine 9 | 1 . 2 . . . 1 1 . 3 . 1 . Core 5 | . 1 . . . 1 . . . 1 2 . . Reactor 1 | . . . . . . . . . . . 1 . Propulsion 28 | 2 1 8 . . 3 1 . 3 8 1 . 1 Treads 1 | . . 1 . . . . . . . . . . Leg 16 | 2 1 3 . . 3 1 . 3 3 . . . Wheel 2 | . . 2 . . . . . . . . . . Hover 8 | . . 1 . . . . . . 5 1 . 1 Flight 1 | . . 1 . . . . . . . . . . Utility 36 | 1 2 8 1 . . 2 1 2 7 8 2 2 Device 21 | . 1 3 1 . . 2 . 1 5 6 1 1 Storage 3 | 1 1 1 . . . . . . . . . . Processor 4 | . . 1 . . . . 1 . 1 . 1 . Hackware 3 | . . . . . . . . 1 1 1 . . Protection 5 | . . 3 . . . . . . . 1 . 1 Artifact . | . . . . . . . . . . . . . Weapon 20 | 2 . 7 . . 1 2 3 2 . 1 2 . Energy Gun 4 | . . 2 . . . . . . . 1 1 . Energy Cannon 5 | . . . . . . 2 2 1 . . . . Ballistic Gun 6 | 2 . 3 . . 1 . . . . . . . Ballistic Cannon 1 | . . . . . . . . 1 . . . . Launcher 2 | . . 1 . . . . 1 . . . . . Special Weapon . | . . . . . . . . . . . . . Impact Weapon . | . . . . . . . . . . . . . Slashing Weapon 1 | . . . . . . . . . . . 1 . Piercing Weapon . | . . . . . . . . . . . . . Special Melee Weapon 1 | . . 1 . . . . . . . . . . Unidentified Prototypes 5 | . . 2 . . . . . . 1 . 1 1 Parts Lost 26 | . 5 6 1 . . . . . . 3 . 11 Power 3 | . 1 1 . . . . . . . . . 1 Propulsion 6 | . 2 2 1 . . . . . . . . 1 Utility 14 | . 1 2 . . . . . . . 3 . 8 Weapon 3 | . 1 1 . . . . . . . . . 1 Highest Loss Streak 6 | . 5 2 2 . . . . . . 2 . 6 To Critical Strikes . | . . . . . . . . . . . . . Average Backups 8 | . . 6 9 10 9 9 7 9 12 10 7 6 Power . | . . 1 1 1 1 1 . . . 1 . . Propulsion . | . . . . . . . . . 1 1 1 . Utility 3 | . . 2 4 5 5 4 3 4 6 5 3 2 Weapon 2 | . . 1 2 4 2 3 3 3 3 2 3 4 Tool/Special . | . . . . . . . . . . . . . Unused Backups 12 | . . 1 1 1 1 3 . . . 3 . 2 Power 2 | . . . 1 . . 1 . . . . . . Propulsion 1 | . . 1 . . . . . . . . . . Utility 6 | . . . . 1 1 1 . . . 2 . 1 Weapon 3 | . . . . . . 1 . . . 1 . 1 Tool/Special . | . . . . . . . . . . . . . Average Slot Usage (%) 85 | . 89 69 78 77 97 89 99 93 98 99 98 86 Engine 9 | . 12 7 11 11 2 1 15 13 7 4 4 4 Core 1 | . . 1 . . 8 7 . . 2 5 8 3 Leg 18 | . 26 11 22 22 31 27 30 26 15 . . . Wheel 1 | . . 7 . . . . . . . . . . Hover 5 | . . 3 . . . . . . 13 31 28 29 Device 17 | . 7 4 21 22 22 27 23 23 23 20 23 17 Storage 8 | . 14 6 11 11 11 9 7 6 5 5 4 4 Processor 3 | . . 1 . . . . 6 6 8 5 7 7 Hackware 1 | . . . . . . . . 3 6 10 9 7 Protection 1 | . . 7 . . . . . . . 4 . . Energy Gun 1 | . . 8 . . . . . . . . . 2 Energy Cannon 4 | . . . . . . 15 14 11 10 9 5 1 Ballistic Gun 5 | . 26 8 11 . 21 . . . . . . . Special Melee Weapon 1 | . . . . 11 . . . . . . . . Peak Build Rating 129 | 6 7 16 16 11 19 26 33 44 76 103 119 129 Average Rating 31 | 4 6 9 13 11 18 24 32 38 62 94 112 110 On Entrance 35 | . 6 2 13 13 11 19 25 33 44 75 103 119 Naked Turns . | . . . . . . . . . . . . . Heaviest Build 91 | 13 23 40 27 24 29 40 47 52 70 84 84 91 Greatest Support 98 | 20 20 30 30 20 33 48 48 58 73 84 84 98 Greatest Overweight (x) 4 | 4 1 3 1 1 1 1 . 1 1 . . . Average Overweight (x) . | 1 . . . 1 . . . . . . . . Largest Inventory Capacity 15 | 8 10 15 10 10 10 10 10 10 15 15 10 10 Average Capacity 10 | 7 9 9 10 10 10 10 10 10 13 12 10 10 Most Carried 15 | . 2 12 10 10 10 10 10 10 15 15 8 8 Average Carried 8 | . . 6 9 10 9 9 7 9 12 10 7 6 Final Capacity 15 | 8 5 10 10 10 10 10 10 10 15 10 10 10 Final Carried 14 | . 2 10 10 10 10 10 10 10 14 8 8 8 Class Distribution -------------------- 66% | Scavenger-Mutant 24% | Mutant 9% | Hacker-Mutant Dominant Class ---------------- Mutant | -10/Materials Mutant | -9/Materials Scavenger-Mutant | -9/Mines Scavenger-Mutant | -9/Exiles Scavenger-Mutant | -8/Mines Scavenger-Mutant | -8/Materials Scavenger-Mutant | -7/Factory Scavenger-Mutant | -6/Factory Scavenger-Mutant | -5/Factory Hacker-Mutant | -4/Factory Hacker-Mutant | -3/Research Hacker-Mutant | -2/Research Resources | -11 -10 -9 -9 -9 -8 -8 -7 -6 -5 -4 -3 -2 ----------- Run | Yrd Mat Mat Min Exi Min Mat Fac Fac Fac Fac Res Res Matter Collected 2334 | 253 126 669 128 16 130 90 83 87 338 289 105 20 Remotely 229 | . . 229 . . . . . . . . . . Salvage Created 3706 | . 126 722 65 . 140 73 261 159 954 808 105 293 Parts 189 | . 5 46 2 . 10 11 20 10 33 31 5 16 Haulers Intercepted 5 | . . 3 . . . . 1 . . 1 . . Recyclers Shooed 5 | . . . . . . . 1 . 3 1 . . Parts Field Recycled . | . . . . . . . . . . . . . Retrieved Matter . | . . . . . . . . . . . . . Parts Self-Destructed . | . . . . . . . . . . . . . Prevented . | . . . . . . . . . . . . . Kills | -11 -10 -9 -9 -9 -8 -8 -7 -6 -5 -4 -3 -2 ------- Run | Yrd Mat Mat Min Exi Min Mat Fac Fac Fac Fac Res Res Combat Hostiles Destroyed 74 | . 3 20 2 . 3 2 3 3 13 13 1 11 Guns 15 | . 3 8 . . 3 . . . . . 1 . Cannons 22 | . . . . . . 2 3 2 10 5 . . AOE 32 | . . 11 2 . . . . . 2 6 . 11 Classes Destroyed 15 | . 1 9 . . 1 . 1 . 2 1 . . Worker 16 | . . 3 . . . . 6 . . 6 . 1 Builder 4 | . . 1 . . . . . . 1 2 . . Tunneler 3 | . . 1 . . . . . . . 1 . 1 Hauler 5 | . . 3 . . . . 1 . . 1 . . Recycler 4 | . . 1 . . . . 1 . 2 . . . Carrier 1 | . . . . . . . . . . 1 . . Mechanic 1 | . . 1 . . . . . . . . . . Watcher 2 | . . 1 . . . . . . 1 . . . Swarmer 32 | . . 10 . . . 1 2 . 3 6 . 10 Grunt 21 | . 3 7 2 . 2 . . . 4 2 . 1 Duelist 2 | . . . . . 1 . . 1 . . . . Sentry 8 | . . 3 . . . 1 . . 1 2 1 . Hunter 7 | . . . . . . . . . 3 4 . . Programmer 4 | . . . . . . . 1 2 1 . . . Behemoth 1 | . . . . . . . . . 1 . . . Best Kill Streak 11 | . 1 9 2 . 3 1 7 1 8 8 1 11 Combat Bots Only 10 | . 1 4 2 . 3 1 2 1 4 5 1 10 Max Kills in Single Turn 5 | . 1 3 2 . 1 1 5 1 2 4 1 4 Gunslinging . | . . . . . . . . . . . . . Exploded 4 | . . 3 2 . . . . . 2 2 . 4 Melee . | . . . . . . . . . . . . . Uniques/NPCs Destroyed . | . . . . . . . . . . . . . Combat | -11 -10 -9 -9 -9 -8 -8 -7 -6 -5 -4 -3 -2 -------- Run | Yrd Mat Mat Min Exi Min Mat Fac Fac Fac Fac Res Res Hostile Shots Fired 442 | . 72 71 . . 19 7 15 14 35 94 4 111 Missed 168 | . 16 25 . . 1 2 3 4 17 48 1 51 Hits 274 | . 56 46 . . 18 5 12 10 18 46 3 60 Melee 3 | . . . . . . . . 1 . . . 2 Projectile 271 | . 56 46 . . 18 5 12 9 18 46 3 58 AOE 5 | . . . . . . . . . . 1 . 4 Critical Strikes 14 | . 2 2 . . . . . 1 1 4 . 4 Damage Taken 5788 | . 687 688 47 . 207 51 149 191 271 900 102 2495 Core 1952 | . 179 74 . . 39 . 47 36 39 31 30 1477 Absorbed by Shields 788 | . . . . . 72 . 32 . 145 306 16 217 Redirected to Shielding 116 | . . . . . . . . . . . . 116 Core Remaining (%) 86 | 100 28 . . . 71 100 93 95 96 97 97 . Volleys Fired 214 | . 34 60 1 . 9 6 12 9 34 35 2 12 Largest 2 | . 2 2 2 . 2 2 2 2 2 2 2 1 Hottest 159 | . 40 121 53 . 46 130 130 155 155 155 159 36 Shots Fired 385 | . 66 108 2 . 18 12 24 18 64 57 4 12 Gun 182 | . 66 95 1 . 18 . . . . . 2 . Cannon 160 | . . . . . . 12 23 18 60 45 2 . Launcher 43 | . . 13 1 . . . 1 . 4 12 . 12 Special . | . . . . . . . . . . . . . Kinetic 119 | . 66 33 1 . 18 . . 1 . . . . Thermal 223 | . . 62 . . . 12 23 17 60 45 4 . Explosive 43 | . . 13 1 . . . 1 . 4 12 . 12 Electromagnetic . | . . . . . . . . . . . . . Robot Hit Streak 23 | . 13 23 2 . 14 4 8 7 8 8 12 16 Robot Miss Streak 5 | . 3 5 . . 2 1 4 3 4 3 . 2 Penetration Max . | . . . . . . . . . . . . . Secondary Targets 3 | . 1 . . . 2 . . . . . . . Max Gunslinging Chain 1 | . 1 . . . 1 . . . . . . . Shots Hit Robots 254 | . 44 78 2 11 14 4 12 12 36 31 4 6 Core Hits 196 | . 11 61 3 . 7 2 12 5 26 41 3 25 Critical Kills 6 | . . . . . . . . 1 2 3 . . Critical Parts Destroyed . | . . . . . . . . . . . . . Critical Strikes 8 | . . 2 . . . . . 1 2 3 . . Burn 2 | . . 2 . . . . . . . . . . Meltdown 6 | . . . . . . . . 1 2 3 . . Melee Attacks 14 | . . 2 . 11 . . 1 . . . . . Impact . | . . . . . . . . . . . . . Slashing . | . . . . . . . . . . . . . Piercing . | . . . . . . . . . . . . . Sneak Attacks 14 | . . 2 . 11 . . 1 . . . . . Combat Hostiles . | . . . . . . . . . . . . . Follow-up Attacks . | . . . . . . . . . . . . . Damage Inflicted 10659 | . 447 1953 119 . 193 115 713 453 1728 3086 130 1722 Guns 1779 | . 446 1058 16 . 193 . . . . . 66 . Cannons 3200 | . . . . . . 115 355 453 1262 951 64 . Explosions 5506 | . . 895 103 . . . 272 . 447 2135 . 1654 Melee . | . . . . . . . . . . . . . Ramming 174 | . 1 . . . . . 86 . 19 . . 68 Kinetic 992 | . 446 323 16 . 193 . . 14 . . . . Thermal 4334 | . . 735 . . . 115 355 439 1262 1298 130 . Explosive 5159 | . . 895 103 . . . 272 . 447 1788 . 1654 Electromagnetic . | . . . . . . . . . . . . . Impact . | . . . . . . . . . . . . . Slashing . | . . . . . . . . . . . . . Piercing . | . . . . . . . . . . . . . Highest Corruption 7 | . . 2 2 2 2 . . . 2 1 1 7 Average Corruption 1 | . . 2 2 2 2 . . . 1 1 1 7 Corruption Purged . | . . . . . . . . . . . . . Corruption Blocked . | . . . . . . . . . . . . . Effects 30 | . . 3 12 12 2 . . . . 1 . . Message Errors 8 | . . . 2 6 . . . . . . . . Matter Fused 8 | . . 1 5 1 1 . . . . . . . Heat Flow Errors 4 | . . 1 1 2 . . . . . . . . Energy Discharges 4 | . . . 2 . 1 . . . . 1 . . Parts Fused 1 | . . . . 1 . . . . . . . . Data Loss (minor) 3 | . . . 1 2 . . . . . . . . Data Loss (major) 1 | . . . 1 . . . . . . . . . Misfires 1 | . . 1 . . . . . . . . . . Overload Shots . | . . . . . . . . . . . . . Overflow Damage 347 | . . 163 . . . . 18 5 42 56 . 63 Projectiles 60 | . . . . . . . 18 5 37 . . . Explosions 287 | . . 163 . . . . . . 5 56 . 63 Melee . | . . . . . . . . . . . . . Knockbacks 5 | . . . . . . . 3 1 . . . 1 Impact 4 | . . . . . . . 3 . . . . 1 Kinetic 1 | . . . . . . . . 1 . . . . Secondary . | . . . . . . . . . . . . . Self-Inflicted Damage 436 | . . 137 47 . . . . . 7 140 . 105 Shots 8 | . . 2 1 . . . . . . 2 . 3 Rammed 10 | . 1 . . . . . . . 1 . . 8 Targets Rammed 25 | . 1 . . . . . 14 . 2 . . 8 Kicked 15 | . . . . . . . 14 . 1 . . . Crushed . | . . . . . . . . . . . . . Highest Temperature 743 | . 43 380 159 246 7 30 42 213 261 312 . 743 Average Temperature 120 | . 14 101 85 119 6 15 17 78 55 137 . 333 Received Heat Transfer 1174 | . 420 228 . . 115 9 18 45 41 102 18 178 Effects 20 | . . . . . . . . . . 2 . 18 Shutdowns 2 | . . . . . . . . . . . . 2 Energy Bleed 4 | . . . . . . . . . . 2 . 2 Interference 4 | . . . . . . . . . . . . 4 Damage (minor) 1 | . . . . . . . . . . . . 1 Damage (major) 4 | . . . . . . . . . . . . 4 Damage (core) 5 | . . . . . . . . . . . . 5 Siege Activations . | . . . . . . . . . . . . . Martial Activations . | . . . . . . . . . . . . . Shielding Activations . | . . . . . . . . . . . . . Robots Disrupted . | . . . . . . . . . . . . . Combat Hostiles . | . . . . . . . . . . . . . Robots Corrupted . | . . . . . . . . . . . . . Combat Hostiles . | . . . . . . . . . . . . . Parts Fried . | . . . . . . . . . . . . . Impact Corruptions . | . . . . . . . . . . . . . Robots Melted 7 | . . 1 . . . . . 1 2 3 . . Combat Hostiles 5 | . . 1 . . . . . 1 1 2 . . Parts Melted 28 | . . 1 . . . . 1 2 17 6 1 . Heat Transferred 5902 | . . 1484 . . . 148 481 520 1617 1504 148 . Parts Sabotaged . | . . . . . . . . . . . . . Parts Stolen . | . . . . . . . . . . . . . Parts Stripped . | . . . . . . . . . . . . . Power Chain Reactions . | . . . . . . . . . . . . . Alert | -11 -10 -9 -9 -9 -8 -8 -7 -6 -5 -4 -3 -2 ------- Run | Yrd Mat Mat Min Exi Min Mat Fac Fac Fac Fac Res Res Maximum Alert Level 3 | . . 1 . . . . . . 1 3 1 2 Low Security (%) 70 | 100 100 41 100 . 100 100 100 100 65 7 . 34 Level 1 20 | . . 58 . . . . . . 34 18 100 6 Level 2 8 | . . . . . . . . . . 71 . 58 Level 3 . | . . . . . . . . . . 2 . . Level 4 . | . . . . . . . . . . . . . Level 5 . | . . . . . . . . . . . . . High Security . | . . . . . . . . . . . . . Max Security . | . . . . . . . . . . . . . Peak Influence 736 | . 30 349 178 . 42 30 78 52 296 736 386 574 Initial 386 | . . . 129 . . . . 6 . 144 386 194 Average 115 | . 2 160 41 . 9 3 16 8 96 449 358 395 Influence Increases 3213 | . 80 740 69 . 72 56 146 123 498 900 30 499 Destroy 0b10 Robot/C 1520 | . 60 400 40 . 60 40 60 60 260 300 20 220 Destroy 0b10 Robot/NC 175 | . . 55 . . . . 40 . 20 50 . 10 Destroy Leader 304 | . 20 78 10 . 10 10 12 30 52 52 10 20 Allied During Kill 14 | . . . 8 . 2 . . . . 4 . . Successful Hack 76 | . . 23 . . . . 27 . 26 . . . Disable Machine 375 | . . 60 . . . . . 30 45 225 . 15 Destroy Structure 554 | . . 79 11 . . 6 7 3 50 224 . 174 Partial Spotted 45 | . . . . . . . . . . 30 . 15 Lose Combat Pursuer 150 | . . 45 . . . . . . 45 15 . 45 Influence Decreases 2720 | . 80 409 400 . 72 56 132 137 202 460 420 352 Entered New Map 864 | . . . 202 . . . . 8 . 152 350 152 Time Decay 1613 | . 58 358 188 . 52 56 132 129 202 278 70 90 Lost Part 223 | . 22 51 10 . . . . . . 30 . 110 Lost Ally 20 | . . . . . 20 . . . . . . . Squads Dispatched 23 | . 2 1 . . . 4 2 3 4 6 . 1 Investigation 3 | . . 1 . . . 1 . . . 1 . . Extermination 4 | . . . . . . . 1 1 1 1 . . Reinforcement 14 | . 2 . . . . 3 1 2 3 2 . 1 Assault 1 | . . . . . . . . . . 1 . . Garrison 1 | . . . . . . . . . . 1 . . Intercept . | . . . . . . . . . . . . . Searches Triggered . | . . . . . . . . . . . . . Construction Impeded . | . . . . . . . . . . . . . Haulers Reinforced 4 | . . . . . . . 1 1 1 1 . . Active Scanning Responses . | . . . . . . . . . . . . . Cargo Convoy Interrupts . | . . . . . . . . . . . . . Stealth | -11 -10 -9 -9 -9 -8 -8 -7 -6 -5 -4 -3 -2 --------- Run | Yrd Mat Mat Min Exi Min Mat Fac Fac Fac Fac Res Res Distress Signals 10 | . 1 2 . . . 1 2 . 2 2 . . Communications Jammed . | . . . . . . . . . . . . . Distress Signals . | . . . . . . . . . . . . . Times Spotted 182 | . 8 27 2 . 3 4 15 11 41 44 1 26 Peak Tracking Total 13 | . 4 4 2 . 3 3 4 4 8 9 1 13 Tactical Retreats 7 | . . 3 . . . . . . 2 1 . 1 Traps | -11 -10 -9 -9 -9 -8 -8 -7 -6 -5 -4 -3 -2 ------- Run | Yrd Mat Mat Min Exi Min Mat Fac Fac Fac Fac Res Res Traps Triggered 6 | . 1 1 . . . . . . 2 1 1 . Indirectly . | . . . . . . . . . . . . . Trap Hack Attempts . | . . . . . . . . . . . . . Triggered . | . . . . . . . . . . . . . Disarmed . | . . . . . . . . . . . . . Reprogrammed . | . . . . . . . . . . . . . Reused . | . . . . . . . . . . . . . Traps Extracted . | . . . . . . . . . . . . . Installed . | . . . . . . . . . . . . . Triggered . | . . . . . . . . . . . . . Machines | -11 -10 -9 -9 -9 -8 -8 -7 -6 -5 -4 -3 -2 ---------- Run | Yrd Mat Mat Min Exi Min Mat Fac Fac Fac Fac Res Res Machines Disabled 25 | . . 4 . . . . . 2 3 15 . 1 Max in Single Turn 5 | . . 2 . . . . . 1 1 5 . 1 Garrison Access 1 | . . . . . . . . . . 1 . . Machines Repaired . | . . . . . . . . . . . . . Machines Dismantled . | . . . . . . . . . . . . . Machines Sabotaged . | . . . . . . . . . . . . . Overloaded Fab Kills . | . . . . . . . . . . . . . Hacking | -11 -10 -9 -9 -9 -8 -8 -7 -6 -5 -4 -3 -2 --------- Run | Yrd Mat Mat Min Exi Min Mat Fac Fac Fac Fac Res Res Machines Accessed 18 | . 2 4 . 2 . 1 2 1 1 4 . 1 Terminals 11 | . 2 4 . . . 1 1 1 . 2 . . Fabricators 3 | . . . . . . . 1 . 1 1 . . Repair Stations . | . . . . . . . . . . . . . Recycling Units . | . . . . . . . . . . . . . Scanalyzers . | . . . . . . . . . . . . . Garrison Access 2 | . . . . . . . . . . 1 . 1 Total Hacks 53 | . 6 15 . 11 . 1 3 5 4 5 . 3 Successful 26 | . 1 8 . 11 . . 1 1 2 1 . 1 Failed 27 | . 5 7 . . . 1 2 4 2 4 . 2 Catastrophic 9 | . 1 1 . . . . 1 1 . 3 . 2 Database Lockouts . | . . . . . . . . . . . . . Manual 39 | . 3 19 . 1 . 1 1 4 4 3 . 3 Terminals 31 | . 6 15 . . . 1 2 5 . 2 . . Fabricators 7 | . . . . . . . 1 . 4 2 . . Repair Stations . | . . . . . . . . . . . . . Recycling Units . | . . . . . . . . . . . . . Scanalyzers . | . . . . . . . . . . . . . Garrison Access 4 | . . . . . . . . . . 1 . 3 Terminal Hacks 16 | . . 4 . 11 . . 1 . . . . . Record 11 | . . . . 11 . . . . . . . . Robot Analysis 3 | . . 3 . . . . . . . . . . Branch Access Points 2 | . . 1 . . . . 1 . . . . . Fabricator Hacks . | . . . . . . . . . . . . . Repair Station Hacks . | . . . . . . . . . . . . . Recycling Unit Hacks . | . . . . . . . . . . . . . Scanalyzer . | . . . . . . . . . . . . . Garrison Access Hacks 1 | . . . . . . . . . . 1 . . Seal Access 1 | . . . . . . . . . . 1 . . Unauthorized Hacks 9 | . 1 4 . . . . . 1 2 . . 1 Terminals 6 | . 1 4 . . . . . 1 . . . . Botnet 6 | . 1 4 . . . . . 1 . . . . Fabricators 2 | . . . . . . . . . 2 . . . Liberate 1 | . . . . . . . . . 1 . . . Fabnet 1 | . . . . . . . . . 1 . . . Repair Stations . | . . . . . . . . . . . . . Recycling Units . | . . . . . . . . . . . . . Scanalyzers . | . . . . . . . . . . . . . Garrison Access 1 | . . . . . . . . . . . . 1 Reprogram 1 | . . . . . . . . . . . . 1 Data Cores Recovered 1 | . . . . . . . 1 . . . . . Used 1 | . . . . . . . 1 . . . . . Hacking Detections 16 | . 2 5 . . . 1 2 1 1 3 . 1 Full Trace Events 1 | . . 1 . . . . . . . . . . Feedback Events . | . . . . . . . . . . . . . Feedback Blocked . | . . . . . . . . . . . . . Robot Schematics Acquired . | . . . . . . . . . . . . . Robots Built . | . . . . . . . . . . . . . Authchips . | . . . . . . . . . . . . . Time . | . . . . . . . . . . . . . Total Robot Build Rating . | . . . . . . . . . . . . . Part Schematics Acquired . | . . . . . . . . . . . . . Parts Built . | . . . . . . . . . . . . . Authchips . | . . . . . . . . . . . . . Time . | . . . . . . . . . . . . . Total Part Build Rating . | . . . . . . . . . . . . . Parts Repaired . | . . . . . . . . . . . . . Time . | . . . . . . . . . . . . . Parts Recycled . | . . . . . . . . . . . . . Recycled Matter . | . . . . . . . . . . . . . Retrieved Matter . | . . . . . . . . . . . . . Retrieved Components . | . . . . . . . . . . . . . Parts Scanalyzed . | . . . . . . . . . . . . . Part Schematics Acquired . | . . . . . . . . . . . . . Parts Damaged . | . . . . . . . . . . . . . Bothacking | -11 -10 -9 -9 -9 -8 -8 -7 -6 -5 -4 -3 -2 ------------ Run | Yrd Mat Mat Min Exi Min Mat Fac Fac Fac Fac Res Res Used RIF Installer . | . . . . . . . . . . . . . Robots Hacked 14 | . . 1 . 10 . . 1 . . 2 . . Non-combat 4 | . . 1 . 3 . . . . . . . . Combat 10 | . . . . 7 . . 1 . . 2 . . Robot Hacks Applied 13 | . . 1 . 11 . . 1 . . . . . parse_system 13 | . . 1 . 11 . . 1 . . . . . Relay Couplers Released . | . . . . . . . . . . . . . Fabnet Peak Effective % 3 | . . . . . . . . . . 3 1 . Autooverrided 2 | . . . . . . . . . . 2 . . Robots Rewired . | . . . . . . . . . . . . . Allies Hacked . | . . . . . . . . . . . . . Hacks Repelled . | . . . . . . . . . . . . . Allies | -11 -10 -9 -9 -9 -8 -8 -7 -6 -5 -4 -3 -2 -------- Run | Yrd Mat Mat Min Exi Min Mat Fac Fac Fac Fac Res Res Total Allies 6 | . . . 4 . . . . . . 2 . . Largest Group 4 | . . . 4 4 3 . . . . 1 . . Highest-Rated Group 71 | . . . 71 71 40 . . . . 47 . . Highest-Rated Ally 47 | . . . 31 31 16 . . . . 47 . . Total Orders . | . . . . . . . . . . . . . Ally Attacks 14 | . . . . . 9 . . . . 5 . . Total Damage 223 | . . . . . 106 . . . . 117 . . Kills 1 | . . . . . . . . . . 1 . . Allies Corrupted . | . . . . . . . . . . . . . Allies Melted . | . . . . . . . . . . . . . Intel | -11 -10 -9 -9 -9 -8 -8 -7 -6 -5 -4 -3 -2 ------- Run | Yrd Mat Mat Min Exi Min Mat Fac Fac Fac Fac Res Res Active Infowar (turns) 5583 | . 330 422 868 1004 226 385 727 718 546 115 104 138 Optics 242 | . . . . . . . . . . . 104 138 Terrain 5011 | . . 422 868 1004 226 385 727 718 546 115 . . Seismic 330 | . 330 . . . . . . . . . . . Robot Analysis Total 3 | . . 3 . . . . . . . . . . Derelict Logs Recovered 1 | . . . 1 . . . . . . . . . Drone Launches . | . . . . . . . . . . . . . Drone Recoveries . | . . . . . . . . . . . . . Exploration | -11 -10 -9 -9 -9 -8 -8 -7 -6 -5 -4 -3 -2 ------------- Run | Yrd Mat Mat Min Exi Min Mat Fac Fac Fac Fac Res Res Turns Passed 7619 | 77 562 1532 868 1004 226 385 727 718 578 617 141 184 Spaces Moved 4224 | 46 258 664 444 520 155 163 354 378 353 518 163 208 Core 187 | 21 75 91 . . . . . . . . . . Treads . | . . . . . . . . . . . . . Legs 2602 | 25 183 207 444 520 155 163 354 378 173 . . . Wheels 366 | . . 366 . . . . . . . . . . Hover 1069 | . . . . . . . . . 180 518 163 208 Flight . | . . . . . . . . . . . . . Fastest Speed 50 | 50 50 50 120 190 120 120 120 120 68 65 65 62 Average Speed 126 | 148 110 121 187 190 120 163 120 149 93 65 65 64 Slowest Speed 330 | 250 190 330 190 190 190 190 120 190 190 65 65 74 Overloaded Moves . | . . . . . . . . . . . . . Propulsion Burnouts . | . . . . . . . . . . . . . Robots Hopped . | . . . . . . . . . . . . . Potential Cave-ins . | . . . . . . . . . . . . . Cave-ins Triggered . | . . . . . . . . . . . . . Exploration Rate (%) 31 | 4 41 48 91 88 42 27 9 10 13 17 5 13 Regions Visited 12 Branch Regions 3 Pre-discovered Areas 2 | . . . 1 1 . . . . . . . . Known Exits Taken 1 | . . 1 . . . . . . . . . . Unknown Exits Taken 11 | 1 1 . 1 1 1 1 1 1 1 1 1 . Scrap Searched 3 | . . . 2 . 1 . . . . . . . Spaces Dug 25 | . . . . . . 6 . . . . . 19 Terrain Destroyed 332 | . . 84 13 . . 7 8 2 32 127 . 59 Melee . | . . . . . . . . . . . . . Projectile 36 | . . . . . . 7 4 2 9 14 . . AOE 296 | . . 84 13 . . . 4 . 23 113 . 59 Terrain Rammed . | . . . . . . . . . . . . . Walls Destroyed . | . . . . . . . . . . . . . Machines Disabled . | . . . . . . . . . . . . . Actions | -11 -10 -9 -9 -9 -8 -8 -7 -6 -5 -4 -3 -2 --------- Run | Yrd Mat Mat Min Exi Min Mat Fac Fac Fac Fac Res Res Total 6105 | 51 473 1275 478 533 176 273 626 515 530 738 193 244 Wait 1379 | . 170 491 29 . . 82 236 114 90 142 17 8 Move 4212 | 45 257 663 443 519 154 162 353 377 352 517 162 208 Hop . | . . . . . . . . . . . . . Pick Up 40 | . 1 9 2 1 3 5 3 2 7 6 1 . Fast Attach 56 | 6 6 20 . . 1 4 . 2 7 5 3 2 Attach 26 | . . 2 1 . 2 2 3 2 4 5 3 2 Detach 12 | . 1 2 . . . 2 . . 1 2 2 2 Swap 59 | . . 12 . 1 3 2 4 4 18 13 1 1 Drop 68 | . 3 14 2 1 4 8 . 5 15 13 2 1 Fire 214 | . 34 60 1 . 9 6 12 9 34 35 2 12 Melee 14 | . . 2 . 11 . . 1 . . . . . Ram 10 | . 1 . . . . . . . 1 . . 8 Kick 15 | . . . . . . . 14 . 1 . . . Crush . | . . . . . . . . . . . . . Escape Stasis . | . . . . . . . . . . . . . Rewire . | . . . . . . . . . . . . . Trap . | . . . . . . . . . . . . . Miscellaneous . | . . . . . . . . . . . . . Route ------- -11/Scrapyard -10/Materials -9/Materials (discovered 3 exits: *Mat / *Min x2) -9/Mines (discovered 2 exits: *Mat / *Exi) -9/Exiles (discovered 2 exits: [*Min x2]) -8/Mines -8/Materials -7/Factory (discovered 3 exits: *Fac / Low x2) -6/Factory -5/Factory (discovered 2 exits: *Fac / [*Upp]) -4/Factory -3/Research -2/Research History --------- Turn | Location | Event 5 | -11/Scrapyard | Discovered new exit (range 16) 78 | -11/Scrapyard | Entered Materials 317 | -10/Materials | Build established: Mutant 537 | -10/Materials | Discovered new exit (range 3) 610 | -10/Materials | Core integrity fell below 50% 640 | -10/Materials | Entered another Materials area 640 | -9/Materials | Evolved 2 slots: Propulsion x1, Utility x1 643 | -9/Materials | Lost 5 parts (1p2n1u1w) 1520 | -9/Materials | Identified exit to Mines 1827 | -9/Materials | Discovered new exit (range 16) 2036 | -9/Materials | Build established: Scavenger-Mutant 2172 | -9/Materials | Entered Mines 2176 | -9/Mines | Assisted by bots powering up and referring to "LRC-V3" 2298 | -9/Mines | Received a Rocket Launcher from a helpful Derelict 2577 | -9/Mines | Discovered new exit (range 9) 2841 | -9/Mines | Learned location of Recycling (-8) 2844 | -9/Mines | Received a Mining Laser from a helpful Derelict 3022 | -9/Mines | Deemed a non-threat by the Exiles lab entrance 3024 | -9/Mines | Discovered new exit (range 5) 3040 | -9/Mines | Entered Exiles 3040 | -9/Exiles | Accompanied by 4 allies 3075 | -9/Exiles | Discovered new exit (range 15) 3094 | -9/Exiles | Met 8R-AWN 3129 | -9/Exiles | Met EX-HEX 3180 | -9/Exiles | Met EX-BIN 3387 | -9/Exiles | Met EX-DEC 3434 | -9/Exiles | Learned location of Zion (-7) 3526 | -9/Exiles | Visited The Gauntlet 4025 | -9/Exiles | Discovered new exit (range 10) 4044 | -9/Exiles | Entered Mines 4044 | -8/Mines | Accompanied by 3 allies 4083 | -8/Mines | Lost 3 allies 4262 | -8/Mines | Discovered new exit (range 6) 4270 | -8/Mines | Entered Materials 4270 | -8/Materials | Evolved 2 slots: Propulsion x1, Utility x1 4573 | -8/Materials | Met 7R-MNS 4649 | -8/Materials | Discovered new exit (range 6) 4655 | -8/Materials | Entered Factory 4655 | -7/Factory | Evolved 2 slots: Power x1, Utility x1 4656 | -7/Factory | Caught up to 7R-MNS 5354 | -7/Factory | Identified exit to Lower Caves 5371 | -7/Factory | Discovered new exit (range 10) 5382 | -7/Factory | Entered another Factory area 5382 | -6/Factory | Evolved 2 slots: Utility x2 5383 | -6/Factory | Caught up to 7R-MNS 5581 | -6/Factory | Discovered new exit (range 14) 6100 | -6/Factory | Entered another Factory area 6100 | -5/Factory | Evolved 2 slots: Propulsion x1, Utility x1 6101 | -5/Factory | Caught up to 7R-MNS 6146 | -5/Factory | Discovered new exit (range 7) 6424 | -5/Factory | Spotted B-75 Beast 6450 | -5/Factory | Destroyed B-75 Beast 6626 | -5/Factory | Discovered new exit (range 16) 6678 | -5/Factory | Entered another Factory area 6678 | -4/Factory | Evolved 2 slots: Propulsion x1, Utility x1 6679 | -4/Factory | Caught up to 7R-MNS 6694 | -4/Factory | Garrison activated, responded to threat 6728 | -4/Factory | Spotted B-86 Titan 7046 | -4/Factory | Discovered new exit (range 14) 7178 | -4/Factory | First assault squad dispatched 7213 | -4/Factory | Build established: Hacker-Mutant 7295 | -4/Factory | Entered Research 7295 | -3/Research | Evolved 2 slots: Power x1, Utility x1 7400 | -3/Research | Discovered new exit (range 12) 7436 | -3/Research | Entered another Research area 7436 | -2/Research | Evolved 2 slots: Propulsion x1, Utility x1 7543 | -2/Research | Destroyed 10 combat bots 7568 | -2/Research | Spotted B-90 Cyclops 7577 | -2/Research | Core integrity fell below 50% 7583 | -2/Research | Core integrity fell below 20% 7600 | -2/Research | Lost 6 parts (5u1w) 7620 | -2/Research | Destroyed by C-57 Dissector with Dual-blade Saw Last Messages --------------- 07588_ Overheating: Med. Storage Unit damaged (-85). 07588_ Overheating: Cmb. Gravmag System damaged (-54). 07596_ Slammed into K-01 Serf. 07596_ K-01 Serf destroyed. 07597_ Acquired 20 matter. 07598_ Slammed into Y-72 Warden. 07599_ M-13 Machinist repairs G-73 Enforcer. 07599_ Slammed into Y-72 Warden. 07600_ Cmb. Gravmag System destroyed. 07601_ M-13 Machinist repairs G-73 Enforcer Hvy. Laser. 07601_ Slammed into Y-72 Warden. 07603_ Neutrino Core destroyed. 07609_ ALERT: Suspicious intruders detected, dispatching Cutter reinforcements to area. 07618_ Imp. Targeting Computer destroyed. 07618_ Hacking Suite destroyed. 07618_ System corrupted by crushing effect (+2). 07618_ System corrupted by crushing effect (+5). 07618_ Knocked back. 07619_ C-57 Dissector knocked back. Map ----- +----------------------------------------------------+ | ?????????????????????????????????????????????????? | | ?????????????????????????????????????????????????? | | ?????????????????????????????????????????????????? | | ?????????????????????????????????????????????????? | | ?????????????????????????????????????????????????? | | ?????????????????????????????????????????????????? | | ?????????????????????????????????????????????????? | | ?????????????????????????????????????????????????? | | ?????????????????????????????????????????????????? | | ?????????????????????????????????????????????????? | | ??????????????????????? ?????????????????????????? | | ????????????????????? ????????????????????????? | | ????????????????????# ????????????????????????? | | ?????????????????##?# ???????????????????????? | | ????????????????"" ?# #???????????????????????? | | ???????????? ""R" # #???????????????????????? | | ???????????# "" " # #???????????????????????? | | ???????????# # ##??????????????????????? | | ???????????# # T#??????????????????????? | | ????? ?????# ]! #??????????????????????? | | ????? ????# ]! ###?????????????????????? | | ?????? ??# = ########??????????????? | | ???????? ?# =!! #??????????????? | | ???#######/### !! #??????????????? | | ??? R ! +??????????????? | | ?? c@ =! #??????????????? | | ?? c !! #??????????????? | | ?? c c ########??????????????? | | ?????????#/### #?????????????????????? | | ?????????????# # #???????????????????? | | ?????????????# # #???????????????????? | | ?????????????# #"" #???????????????????? | | ?????????????# #"" #???????????????????? | | ?????????????# #"T #???????????????????? | | ?????????????# #"" #???????????????????? | | ?????????????# #"" #???????????????????? | | ?????????????# ]#?? #???????????????????? | | ?????????????# #?? #???????????????????? | | ?????????????########+####+###???????????????????? | | ???????????????????# ###??????????????????? | | ???????????????????# +??????????????????? | | ???????????????????# ###??????????????????? | | ???????????????????###### #????????????????????? | | ???????????????????????## ##???????????????????? | | ???????????????????????# #???????????????????? | | ???????????????######### ####????????????????? | | ???????????????# ! [ + +????????????????? | | ???????????????# # ## #????????????????? | | ???????????????#= # #??#????????????????? | | ???????????????#######?### ###???????????????????? | +----------------------------------------------------+ Best States ------------- Heat Dissipation 76 Coolant Potential 80 Energy Generation 48 Energy Capacity 745 Matter Stores 300 Matter Capacity 300 Sight Range 22 Terrain Scan Range 16 Terrain Scan Density 10 Base Temperature (-) 200 Armor Coverage 225 Power Shielding 66 Phase Shifting 10 Evasion (%) 74 Targeting Accuracy 12 Energy Filtering 30 Particle Charging 25 Offensive Hacking 10 Defensive Hacking 14 Item Schematics ----------------- None Robot Schematics ------------------ None Fabricated ------------ Nothing Repaired ---------- Nothing Alien Tech Used ----------------- None Achievements -------------- None Challenges ------------ None Game ------ Seed VisualElectrostormSuit Manual? 0 Play Time 01:27:27 Cumulative 335.3 hours Start 2025.08.16 @ 13:31:31 End 2025.08.16 @ 15:19:45 Sessions 1 Manual Loads 0 Difficulty Rogue Special Mode None Game No. 141 Rogue 70 Adventurer 68 Explorer 3 Win Type - Total 27 Types 16/2/2/4/2/0/0/0/0/1 Lore% 77 Gallery% 75 Achievement% 73 Wizard Run 0 Options --------- Layout 0 ASCII 0 Keyboard 0 Movement Numpad Keybinds 0 Fullscreen 1 Font 24/Smallcaps Map View 76x50 Zoom Use 0% Tactical HUD 1 Map Filters NONE Filters NONE Steam 1 RUN: 4072857d-acc9-4bbf-9ca9-1afdd92ed60a